[Event "*** SCC Grand Prix: Titled Tuesday Blitz"]
[Site "Chess.com"]
[Date "2020.06.02"]
[Round "6"]
[White "MartinMatthiesen"]
[Black "Haykoooo0o"]
[Result "0-1"]
[WhiteElo "2360"]
[BlackElo "2567"]
[TimeControl "180+1"]
[EndTime "11:09:14 PDT"]
[Termination "Haykoooo0o won on time"]

1. d4 {[%clk 0:03:00.9]} 1... Nf6 {[%clk 0:02:59]} 2. c4 {[%clk 0:03:00.4]} 2...
c5 {[%clk 0:02:59.3]} 3. d5 {[%clk 0:03:00.3]} 3... b5 {[%clk 0:02:59.5]} 4.
cxb5 {[%clk 0:03:00]} 4... a6 {[%clk 0:02:59.9]} 5. bxa6 {[%clk 0:02:59.9]} 5...
g6 {[%clk 0:02:59.6]} 6. Nc3 {[%clk 0:02:58.6]} 6... Bg7 {[%clk 0:03:00]} 7. e4
{[%clk 0:02:58.5]} 7... O-O {[%clk 0:03:00.5]} 8. Nf3 {[%clk 0:02:46.3]} 8...
Qa5 {[%clk 0:02:59.8]} 9. Bd2 {[%clk 0:02:45.4]} 9... Bxa6 {[%clk 0:02:59.2]}
10. Be2 {[%clk 0:02:45]} 10... Bxe2 {[%clk 0:02:57.5]} 11. Qxe2 {[%clk
0:02:44.7]} 11... Qa6 {[%clk 0:02:55.5]} 12. Qxa6 {[%clk 0:02:17]} 12... Nxa6
{[%clk 0:02:56.4]} 13. Ke2 {[%clk 0:02:14]} 13... d6 {[%clk 0:02:56.2]} 14. h3
{[%clk 0:02:10.8]} 14... Rfb8 {[%clk 0:02:56.7]} 15. Rhb1 {[%clk 0:02:09.8]}
15... Nb4 {[%clk 0:02:56.8]} 16. Ne1 {[%clk 0:02:06.7]} 16... Nd7 {[%clk
0:02:54.5]} 17. Nd1 {[%clk 0:01:58.6]} 17... Ne5 {[%clk 0:02:50.7]} 18. a3
{[%clk 0:01:52.4]} 18... Na6 {[%clk 0:02:48.3]} 19. Ne3 {[%clk 0:01:49.5]} 19...
Rb3 {[%clk 0:02:43.9]} 20. Bc3 {[%clk 0:01:47.6]} 20... Rab8 {[%clk 0:02:42.6]}
21. f4 {[%clk 0:01:45.6]} 21... Nd7 {[%clk 0:02:42.5]} 22. Bxg7 {[%clk 0:01:45]}
22... Kxg7 {[%clk 0:02:43.4]} 23. Nc4 {[%clk 0:01:29.3]} 23... Nf6 {[%clk
0:02:38.8]} 24. Nd2 {[%clk 0:01:25.5]} 24... Rxb2 {[%clk 0:02:38.4]} 25. Rxb2
{[%clk 0:01:25.1]} 25... Rxb2 {[%clk 0:02:39.3]} 26. Nd3 {[%clk 0:01:21.7]}
26... Rc2 {[%clk 0:02:37.9]} 27. Kd1 {[%clk 0:01:09.3]} 27... Rc3 {[%clk
0:02:37.7]} 28. Ke2 {[%clk 0:01:09.5]} 28... c4 {[%clk 0:02:32.7]} 29. Nb4
{[%clk 0:01:04.3]} 29... Nc5 {[%clk 0:02:28.6]} 30. a4 {[%clk 0:00:57.2]} 30...
Nb3 {[%clk 0:02:05.9]} 31. Nxb3 {[%clk 0:00:55.9]} 31... Rxb3 {[%clk 0:02:06.8]}
32. Nc6 {[%clk 0:00:49.7]} 32... Nxe4 {[%clk 0:01:55.4]} 33. a5 {[%clk
0:00:48.8]} 33... Nc3+ {[%clk 0:01:55.9]} 34. Kd2 {[%clk 0:00:37.2]} 34... Nxd5
{[%clk 0:01:56.1]} 35. a6 {[%clk 0:00:36.8]} 35... Rb2+ {[%clk 0:01:51.9]} 36.
Kc1 {[%clk 0:00:33.5]} 36... Rxg2 {[%clk 0:01:52.3]} 37. Ra4 {[%clk 0:00:29.1]}
37... c3 {[%clk 0:01:46.4]} 38. Nd4 {[%clk 0:00:11.1]} 38... Ne3 {[%clk
0:01:40.5]} 39. Kb1 {[%clk 0:00:10.5]} 39... c2+ {[%clk 0:01:01.5]} 40. Kb2
{[%clk 0:00:10.8]} 40... Rg1 {[%clk 0:00:44.6]} 41. Nxc2 {[%clk 0:00:10]} 41...
Rg2 {[%clk 0:00:45]} 42. a7 {[%clk 0:00:09.9]} 42... Rxc2+ {[%clk 0:00:45.5]}
43. Kb3 {[%clk 0:00:10.2]} 43... Rc8 {[%clk 0:00:46.1]} 44. a8=Q {[%clk
0:00:09.9]} 44... Rxa8 {[%clk 0:00:46.6]} 45. Rxa8 {[%clk 0:00:10.6]} 45... Nd5
{[%clk 0:00:46.9]} 46. Ra4 {[%clk 0:00:03.9]} 46... Kf6 {[%clk 0:00:46.9]} 0-1

[Event "*** SCC Grand Prix: Titled Tuesday Blitz"]
[Site "Chess.com"]
[Date "2020.06.02"]
[Round "6"]
[White "LileKoridze"]
[Black "Yoshikrov"]
[Result "1-0"]
[WhiteElo "2312"]
[BlackElo "2045"]
[TimeControl "180+1"]
[EndTime "11:09:15 PDT"]
[Termination "LileKoridze won on time"]

1. d4 {[%clk 0:03:00.9]} 1... Nf6 {[%clk 0:02:59.9]} 2. c4 {[%clk 0:03:01]} 2...
g6 {[%clk 0:02:59.1]} 3. Nc3 {[%clk 0:03:01.1]} 3... d5 {[%clk 0:02:59]} 4. Nf3
{[%clk 0:03:00.5]} 4... Bg7 {[%clk 0:02:59]} 5. Bg5 {[%clk 0:03:00.6]} 5... c6
{[%clk 0:02:55.2]} 6. e3 {[%clk 0:03:00]} 6... O-O {[%clk 0:02:55.1]} 7. Bd3
{[%clk 0:03:00]} 7... Be6 {[%clk 0:02:53.4]} 8. cxd5 {[%clk 0:02:53.2]} 8...
cxd5 {[%clk 0:02:33.5]} 9. O-O {[%clk 0:02:52.8]} 9... Nc6 {[%clk 0:02:31.1]}
10. a3 {[%clk 0:02:52.2]} 10... Rc8 {[%clk 0:02:19]} 11. Rc1 {[%clk 0:02:50.3]}
11... Qd7 {[%clk 0:02:04.6]} 12. h3 {[%clk 0:02:43.1]} 12... Bf5 {[%clk
0:02:03.3]} 13. Be2 {[%clk 0:02:37.6]} 13... Ne4 {[%clk 0:02:02.8]} 14. Bf4
{[%clk 0:02:35.9]} 14... Rfe8 {[%clk 0:01:47.8]} 15. Nd2 {[%clk 0:02:26.7]}
15... Nxc3 {[%clk 0:01:38.4]} 16. Rxc3 {[%clk 0:02:26.7]} 16... e5 {[%clk
0:01:34.5]} 17. dxe5 {[%clk 0:02:26.7]} 17... Nxe5 {[%clk 0:01:33.3]} 18. Rxc8
{[%clk 0:02:26.4]} 18... Rxc8 {[%clk 0:01:34.2]} 19. Nf3 {[%clk 0:01:44]} 19...
Bc2 {[%clk 0:00:57.6]} 20. Qd2 {[%clk 0:01:26.8]} 20... Nxf3+ {[%clk 0:00:54]}
21. Bxf3 {[%clk 0:01:26.8]} 21... Bxb2 {[%clk 0:00:51.2]} 22. Bxd5 {[%clk
0:01:19.6]} 22... Bxa3 {[%clk 0:00:42.5]} 23. Qd4 {[%clk 0:00:57.8]} 23... Bc5
{[%clk 0:00:32.4]} 24. Qc3 {[%clk 0:00:16]} 24... Qxd5 {[%clk 0:00:23.5]} 25.
Bh6 {[%clk 0:00:13.3]} 25... f6 {[%clk 0:00:12.9]} 26. Qxc2 {[%clk 0:00:11.2]}
26... b6 {[%clk 0:00:08.6]} 27. Rd1 {[%clk 0:00:10.1]} 27... Qf7 {[%clk
0:00:07.8]} 28. Qd3 {[%clk 0:00:08.9]} 28... Bf8 {[%clk 0:00:07.6]} 29. Bf4
{[%clk 0:00:07.9]} 29... Re8 {[%clk 0:00:07.2]} 30. Qa6 {[%clk 0:00:07.4]} 30...
Re7 {[%clk 0:00:07.1]} 31. Qc8 {[%clk 0:00:06.7]} 31... Kg7 {[%clk 0:00:06]} 32.
Rd8 {[%clk 0:00:06.4]} 32... g5 {[%clk 0:00:04.7]} 33. Bd6 {[%clk 0:00:04.8]}
1-0

[Event "*** SCC Grand Prix: Titled Tuesday Blitz"]
[Site "Chess.com"]
[Date "2020.06.02"]
[Round "6"]
[White "RobertoJBM"]
[Black "ChessWarrior7197"]
[Result "1-0"]
[WhiteElo "2638"]
[BlackElo "2891"]
[TimeControl "180+1"]
[EndTime "11:09:16 PDT"]
[Termination "RobertoJBM won by checkmate"]

1. d4 {[%clk 0:03:00.9]} 1... d5 {[%clk 0:02:59.3]} 2. c4 {[%clk 0:02:58.9]}
2... e6 {[%clk 0:02:59.3]} 3. Nc3 {[%clk 0:02:58.4]} 3... c5 {[%clk 0:02:59.1]}
4. cxd5 {[%clk 0:02:57]} 4... exd5 {[%clk 0:03:00]} 5. Nf3 {[%clk 0:02:56.6]}
5... Nc6 {[%clk 0:02:59.9]} 6. e3 {[%clk 0:02:56.5]} 6... Nf6 {[%clk 0:02:58.2]}
7. Be2 {[%clk 0:02:50]} 7... a6 {[%clk 0:02:57.3]} 8. O-O {[%clk 0:02:49.4]}
8... c4 {[%clk 0:02:54.9]} 9. Ne5 {[%clk 0:02:47.9]} 9... Bd6 {[%clk 0:02:52.4]}
10. f4 {[%clk 0:02:48.3]} 10... O-O {[%clk 0:02:50.7]} 11. Bf3 {[%clk
0:02:48.8]} 11... Ne7 {[%clk 0:02:49.1]} 12. g4 {[%clk 0:02:43.5]} 12... Bc7
{[%clk 0:02:48.7]} 13. g5 {[%clk 0:02:43.7]} 13... Ne8 {[%clk 0:02:48.6]} 14.
Qe2 {[%clk 0:02:40.6]} 14... Ba5 {[%clk 0:02:46.8]} 15. Bd2 {[%clk 0:02:34.7]}
15... Bf5 {[%clk 0:02:47.2]} 16. Qg2 {[%clk 0:02:33.9]} 16... Nc7 {[%clk
0:02:43.2]} 17. h4 {[%clk 0:02:20.6]} 17... Kh8 {[%clk 0:02:42.4]} 18. Kh2
{[%clk 0:02:19.3]} 18... b5 {[%clk 0:02:39.4]} 19. h5 {[%clk 0:02:15.8]} 19...
f6 {[%clk 0:02:39.2]} 20. gxf6 {[%clk 0:02:09.4]} 20... gxf6 {[%clk 0:02:40.1]}
21. Rg1 {[%clk 0:02:08.3]} 21... Ne6 {[%clk 0:02:27.1]} 22. Ng4 {[%clk
0:01:11.4]} 22... Bxc3 {[%clk 0:02:23.2]} 23. Bxc3 {[%clk 0:01:08]} 23... a5
{[%clk 0:02:20.1]} 24. Be1 {[%clk 0:00:58.6]} 24... Rg8 {[%clk 0:02:14.8]} 25.
Bh4 {[%clk 0:00:58.1]} 25... Qf8 {[%clk 0:01:47.5]} 26. Bxf6+ {[%clk 0:00:57.9]}
26... Qxf6 {[%clk 0:01:47.4]} 27. Nxf6 {[%clk 0:00:58.4]} 27... Rxg2+ {[%clk
0:01:48.3]} 28. Rxg2 {[%clk 0:00:59.1]} 28... b4 {[%clk 0:01:47.7]} 29. Nxd5
{[%clk 0:00:57]} 29... Nxd5 {[%clk 0:01:47.3]} 30. Bxd5 {[%clk 0:00:57.9]} 30...
Rc8 {[%clk 0:01:47.5]} 31. Bxe6 {[%clk 0:00:51.7]} 31... Bxe6 {[%clk 0:01:46.9]}
32. e4 {[%clk 0:00:52.6]} 32... Bf7 {[%clk 0:01:29.5]} 33. f5 {[%clk 0:00:47.1]}
33... Bxh5 {[%clk 0:00:01.4]} 34. e5 {[%clk 0:00:45.9]} 34... Bg4 {[%clk
0:00:01.4]} 35. Rxg4 {[%clk 0:00:44.8]} 35... c3 {[%clk 0:00:01.5]} 36. bxc3
{[%clk 0:00:44.6]} 36... bxc3 {[%clk 0:00:02.4]} 37. f6 {[%clk 0:00:43.4]} 37...
c2 {[%clk 0:00:03.3]} 38. e6 {[%clk 0:00:42.3]} 38... h5 {[%clk 0:00:04.2]} 39.
f7 {[%clk 0:00:35]} 39... hxg4 {[%clk 0:00:05.1]} 40. e7 {[%clk 0:00:35.3]}
40... Kg7 {[%clk 0:00:05.4]} 41. e8=Q {[%clk 0:00:33.6]} 41... c1=Q {[%clk
0:00:06.3]} 42. f8=Q+ {[%clk 0:00:32]} 42... Kh7 {[%clk 0:00:06]} 43. Qef7#
{[%clk 0:00:29]} 1-0

[Event "*** SCC Grand Prix: Titled Tuesday Blitz"]
[Site "Chess.com"]
[Date "2020.06.02"]
[Round "6"]
[White "Rish_97"]
[Black "LuckSlayeer"]
[Result "1-0"]
[WhiteElo "2638"]
[BlackElo "2455"]
[TimeControl "180+1"]
[EndTime "11:09:16 PDT"]
[Termination "Rish_97 won by resignation"]

1. e4 {[%clk 0:03:00.9]} 1... c5 {[%clk 0:02:58.8]} 2. Nf3 {[%clk 0:03:01]} 2...
Nc6 {[%clk 0:02:59]} 3. Bb5 {[%clk 0:02:59.7]} 3... g6 {[%clk 0:02:58.8]} 4. O-O
{[%clk 0:02:59.2]} 4... Bg7 {[%clk 0:02:58.6]} 5. c3 {[%clk 0:02:59.9]} 5... a6
{[%clk 0:02:55.3]} 6. Ba4 {[%clk 0:02:54]} 6... Nf6 {[%clk 0:02:54.5]} 7. Re1
{[%clk 0:02:53.2]} 7... b5 {[%clk 0:02:53.1]} 8. Bc2 {[%clk 0:02:51.6]} 8... c4
{[%clk 0:02:51.8]} 9. e5 {[%clk 0:02:47.6]} 9... Ng4 {[%clk 0:02:48.5]} 10. Be4
{[%clk 0:02:46.6]} 10... Qb6 {[%clk 0:02:17.2]} 11. Qe2 {[%clk 0:02:28.3]} 11...
Bb7 {[%clk 0:01:38.7]} 12. Bxc6 {[%clk 0:02:04.1]} 12... Bxc6 {[%clk 0:01:36.8]}
13. h3 {[%clk 0:02:00.4]} 13... Nh6 {[%clk 0:01:34.6]} 14. Nd4 {[%clk
0:01:58.1]} 14... O-O {[%clk 0:01:19.5]} 15. d3 {[%clk 0:01:52.1]} 15... cxd3
{[%clk 0:01:18.6]} 16. Qxd3 {[%clk 0:01:53]} 16... f6 {[%clk 0:00:43.1]} 17.
exf6 {[%clk 0:01:48.4]} 17... exf6 {[%clk 0:00:44]} 18. Bf4 {[%clk 0:01:43.8]}
18... Nf7 {[%clk 0:00:34.8]} 19. Nd2 {[%clk 0:01:39.7]} 19... Ne5 {[%clk
0:00:29.9]} 20. Qg3 {[%clk 0:01:34.7]} 20... Bb7 {[%clk 0:00:26.3]} 21. Rad1
{[%clk 0:01:26.6]} 21... Rae8 {[%clk 0:00:23.7]} 22. Nf1 {[%clk 0:01:22.9]}
22... Nc4 {[%clk 0:00:16.7]} 23. b3 {[%clk 0:01:15.4]} 23... Ne5 {[%clk
0:00:14.7]} 24. Ne3 {[%clk 0:01:14.9]} 24... Ba8 {[%clk 0:00:11.9]} 25. h4
{[%clk 0:01:10]} 25... Qb7 {[%clk 0:00:11.5]} 26. h5 {[%clk 0:01:02.6]} 26...
Rc8 {[%clk 0:00:05.2]} 27. hxg6 {[%clk 0:00:59.7]} 27... hxg6 {[%clk 0:00:06]}
28. Ne2 {[%clk 0:00:31.1]} 28... Rfd8 {[%clk 0:00:02.4]} 29. Bxe5 {[%clk
0:00:29.8]} 29... fxe5 {[%clk 0:00:02.9]} 30. Qxg6 {[%clk 0:00:29.8]} 30... d6
{[%clk 0:00:03.3]} 31. Nf5 {[%clk 0:00:26.3]} 31... Rc7 {[%clk 0:00:02.3]} 32.
Rxd6 {[%clk 0:00:23.4]} 32... Rxd6 {[%clk 0:00:02.3]} 33. Nxd6 {[%clk
0:00:24.3]} 33... Qc6 {[%clk 0:00:01.7]} 34. Qe8+ {[%clk 0:00:23.3]} 34... Qxe8
{[%clk 0:00:01.8]} 35. Nxe8 {[%clk 0:00:24.2]} 35... Re7 {[%clk 0:00:01.7]} 36.
Nxg7 {[%clk 0:00:24.3]} 36... Rxg7 {[%clk 0:00:02.6]} 37. Ng3 {[%clk 0:00:23.8]}
37... e4 {[%clk 0:00:01.4]} 38. Nxe4 {[%clk 0:00:22.7]} 38... Re7 {[%clk
0:00:01.8]} 39. Nf6+ {[%clk 0:00:22.7]} 39... Kf7 {[%clk 0:00:01.8]} 40. Rxe7+
{[%clk 0:00:23.6]} 40... Kxe7 {[%clk 0:00:02.2]} 41. Ng4 {[%clk 0:00:23.9]} 1-0

[Event "*** SCC Grand Prix: Titled Tuesday Blitz"]
[Site "Chess.com"]
[Date "2020.06.02"]
[Round "6"]
[White "iaraldinho"]
[Black "Enriquack"]
[Result "1-0"]
[WhiteElo "2629"]
[BlackElo "2351"]
[TimeControl "180+1"]
[EndTime "11:09:16 PDT"]
[Termination "iaraldinho won by resignation"]

1. e4 {[%clk 0:03:00.9]} 1... c5 {[%clk 0:03:00.1]} 2. Nf3 {[%clk 0:03:00.5]}
2... e6 {[%clk 0:03:00.5]} 3. d4 {[%clk 0:03:01.4]} 3... cxd4 {[%clk 0:03:01.4]}
4. Nxd4 {[%clk 0:03:01.1]} 4... Nc6 {[%clk 0:03:02.1]} 5. Nc3 {[%clk 0:03:01.5]}
5... Qc7 {[%clk 0:03:02.5]} 6. Be2 {[%clk 0:03:00.1]} 6... Nf6 {[%clk
0:03:02.2]} 7. O-O {[%clk 0:03:00]} 7... Be7 {[%clk 0:03:02.8]} 8. Be3 {[%clk
0:02:59.8]} 8... O-O {[%clk 0:03:03]} 9. f3 {[%clk 0:02:58.6]} 9... a6 {[%clk
0:03:00.2]} 10. Qe1 {[%clk 0:02:57]} 10... b5 {[%clk 0:02:59.2]} 11. a3 {[%clk
0:02:57.2]} 11... Bb7 {[%clk 0:02:59.3]} 12. Qf2 {[%clk 0:02:57.4]} 12... Ne5
{[%clk 0:02:50.5]} 13. g4 {[%clk 0:02:53.8]} 13... d6 {[%clk 0:02:35.8]} 14.
Rad1 {[%clk 0:02:51]} 14... Nfd7 {[%clk 0:02:16]} 15. f4 {[%clk 0:02:48.5]}
15... Nc4 {[%clk 0:02:16.1]} 16. Bxc4 {[%clk 0:02:48.1]} 16... bxc4 {[%clk
0:02:14.3]} 17. g5 {[%clk 0:02:48.3]} 17... g6 {[%clk 0:02:04.1]} 18. f5 {[%clk
0:02:46.8]} 18... e5 {[%clk 0:01:59.6]} 19. f6 {[%clk 0:02:46.7]} 19... Bd8
{[%clk 0:01:31.3]} 20. Qh4 {[%clk 0:02:39.7]} 20... exd4 {[%clk 0:01:24]} 21.
Qh6 {[%clk 0:02:39.5]} 21... Nxf6 {[%clk 0:01:21.7]} 22. gxf6 {[%clk 0:02:17.7]}
22... Bxf6 {[%clk 0:01:18.9]} 23. Rxf6 {[%clk 0:01:56]} 23... dxe3 {[%clk
0:01:17.9]} 24. Qxe3 {[%clk 0:01:56.9]} 24... Rfe8 {[%clk 0:00:57.9]} 25. Rfxd6
{[%clk 0:01:53]} 25... Qe7 {[%clk 0:00:55.6]} 26. Rd7 {[%clk 0:01:51.3]} 26...
Qh4 {[%clk 0:00:38.1]} 27. Rxb7 {[%clk 0:01:48.7]} 27... Re5 {[%clk 0:00:27]}
28. Kh1 {[%clk 0:01:39.5]} 28... Rae8 {[%clk 0:00:25.8]} 29. Qf3 {[%clk
0:01:35.3]} 29... f5 {[%clk 0:00:24.1]} 30. Nd5 {[%clk 0:01:29.5]} 30... Kh8
{[%clk 0:00:15.1]} 31. Nc3 {[%clk 0:01:02.7]} 31... fxe4 {[%clk 0:00:10.7]} 32.
Qg3 {[%clk 0:01:02.1]} 32... Qf6 {[%clk 0:00:09.8]} 33. Qg2 {[%clk 0:00:53.4]}
33... Qf3 {[%clk 0:00:09.6]} 34. Rf1 {[%clk 0:00:48.8]} 34... Qh5 {[%clk
0:00:08]} 35. Rff7 {[%clk 0:00:43.4]} 35... e3 {[%clk 0:00:08.4]} 36. Rxh7+
{[%clk 0:00:40.8]} 36... Qxh7 {[%clk 0:00:09.3]} 37. Rxh7+ {[%clk 0:00:36.5]}
37... Kxh7 {[%clk 0:00:10.2]} 38. Qh3+ {[%clk 0:00:33.1]} 38... Kg7 {[%clk
0:00:10]} 39. Qg4 {[%clk 0:00:32]} 39... Rd8 {[%clk 0:00:09.3]} 40. Qxc4 {[%clk
0:00:27.1]} 40... Rd1+ {[%clk 0:00:08.2]} 41. Nxd1 {[%clk 0:00:10.9]} 1-0

[Event "*** SCC Grand Prix: Titled Tuesday Blitz"]
[Site "Chess.com"]
[Date "2020.06.02"]
[Round "6"]
[White "EfrenRamos1"]
[Black "SaqoChess_Twitch"]
[Result "0-1"]
[WhiteElo "2187"]
[BlackElo "2406"]
[TimeControl "180+1"]
[EndTime "11:09:16 PDT"]
[Termination "SaqoChess_Twitch won on time"]

1. d4 {[%clk 0:02:59.9]} 1... d5 {[%clk 0:02:59.4]} 2. c4 {[%clk 0:02:57.9]}
2... e6 {[%clk 0:02:59.3]} 3. Nf3 {[%clk 0:02:56.7]} 3... Nf6 {[%clk 0:02:59]}
4. g3 {[%clk 0:02:54.6]} 4... Be7 {[%clk 0:02:58.9]} 5. Bg2 {[%clk 0:02:52.6]}
5... O-O {[%clk 0:02:59.5]} 6. O-O {[%clk 0:02:51.1]} 6... dxc4 {[%clk
0:02:58.2]} 7. Ne5 {[%clk 0:02:50.1]} 7... Nc6 {[%clk 0:02:52.5]} 8. Bxc6 {[%clk
0:02:48]} 8... bxc6 {[%clk 0:02:53.4]} 9. Nxc6 {[%clk 0:02:48.2]} 9... Qe8
{[%clk 0:02:49.8]} 10. Nxe7+ {[%clk 0:02:48.4]} 10... Qxe7 {[%clk 0:02:50.7]}
11. b3 {[%clk 0:02:40.4]} 11... e5 {[%clk 0:02:46]} 12. Ba3 {[%clk 0:02:38.7]}
12... Qe6 {[%clk 0:02:39.5]} 13. Bxf8 {[%clk 0:02:37.4]} 13... Kxf8 {[%clk
0:02:40.4]} 14. dxe5 {[%clk 0:02:36.2]} 14... Qxe5 {[%clk 0:02:40.8]} 15. Qd8+
{[%clk 0:02:31.9]} 15... Ne8 {[%clk 0:02:38.4]} 16. Na3 {[%clk 0:02:22.6]} 16...
Qe4 {[%clk 0:02:10.6]} 17. Qd2 {[%clk 0:02:11.5]} 17... c3 {[%clk 0:01:52.4]}
18. Qxc3 {[%clk 0:01:53]} 18... Bh3 {[%clk 0:01:50.4]} 19. f3 {[%clk 0:01:51.6]}
19... Qxe2 {[%clk 0:01:50.5]} 20. Rf2 {[%clk 0:01:50.5]} 20... Qe7 {[%clk
0:01:50.9]} 21. Nc4 {[%clk 0:01:47.8]} 21... Rd8 {[%clk 0:01:50.1]} 22. Re1
{[%clk 0:01:46]} 22... Qd7 {[%clk 0:01:49.7]} 23. Rfe2 {[%clk 0:01:44.1]} 23...
Nf6 {[%clk 0:01:48.3]} 24. Ne5 {[%clk 0:01:37.5]} 24... Qd5 {[%clk 0:01:46.7]}
25. Nc6 {[%clk 0:01:32.1]} 25... Rd6 {[%clk 0:01:43.9]} 26. Nb4 {[%clk
0:01:13.2]} 26... Qb7 {[%clk 0:01:37.6]} 27. Qc5 {[%clk 0:00:57]} 27... g6
{[%clk 0:01:25.4]} 28. Qc3 {[%clk 0:00:48.3]} 28... h5 {[%clk 0:01:23.9]} 29.
Re8+ {[%clk 0:00:39.9]} 29... Kg7 {[%clk 0:01:21.2]} 30. R8e7 {[%clk 0:00:32.1]}
30... Qb6+ {[%clk 0:01:20.5]} 31. R7e3 {[%clk 0:00:27.6]} 31... a5 {[%clk
0:01:18.3]} 32. Nc2 {[%clk 0:00:26.8]} 32... Kh7 {[%clk 0:01:14.8]} 33. Kh1
{[%clk 0:00:23.5]} 33... Nd5 {[%clk 0:01:14.7]} 34. Qc4 {[%clk 0:00:19.8]} 34...
Be6 {[%clk 0:01:14.7]} 35. R3e2 {[%clk 0:00:13.9]} 35... Nb4 {[%clk 0:01:13.5]}
36. Qc3 {[%clk 0:00:11.3]} 36... Nxa2 {[%clk 0:01:13.4]} 37. Qf6 {[%clk
0:00:10.1]} 37... Bxb3 {[%clk 0:01:11.3]} 38. Qg5 {[%clk 0:00:06.4]} 38... Re6
{[%clk 0:01:08.4]} 39. Rxe6 {[%clk 0:00:05.8]} 39... Bxe6 {[%clk 0:01:09.3]} 40.
Ne3 {[%clk 0:00:04.9]} 40... Qb4 {[%clk 0:01:02.7]} 41. Rd1 {[%clk 0:00:04.6]}
41... Nc3 {[%clk 0:01:01.3]} 42. Rd8 {[%clk 0:00:03.6]} 42... Qb1+ {[%clk
0:01:01.3]} 43. Kg2 {[%clk 0:00:02.1]} 43... Qb2+ {[%clk 0:01:01.3]} 44. Kg1
{[%clk 0:00:02.1]} 44... Ne2+ {[%clk 0:00:56.8]} 45. Kf2 {[%clk 0:00:01.1]}
45... Nd4+ {[%clk 0:00:53.9]} 0-1

[Event "*** SCC Grand Prix: Titled Tuesday Blitz"]
[Site "Chess.com"]
[Date "2020.06.02"]
[Round "6"]
[White "The_Machine04"]
[Black "flexova"]
[Result "0-1"]
[WhiteElo "2295"]
[BlackElo "2466"]
[TimeControl "180+1"]
[EndTime "11:09:17 PDT"]
[Termination "flexova won on time"]

1. d4 {[%clk 0:03:00.9]} 1... Nf6 {[%clk 0:02:59.8]} 2. Bg5 {[%clk 0:03:00.2]}
2... c5 {[%clk 0:02:55.3]} 3. Bxf6 {[%clk 0:02:59.7]} 3... gxf6 {[%clk
0:02:55.8]} 4. d5 {[%clk 0:02:59.9]} 4... Qb6 {[%clk 0:02:56.5]} 5. Qc1 {[%clk
0:02:59]} 5... f5 {[%clk 0:02:56.8]} 6. c4 {[%clk 0:02:57.8]} 6... Bg7 {[%clk
0:02:57.2]} 7. Nc3 {[%clk 0:02:57.5]} 7... d6 {[%clk 0:02:57.7]} 8. e3 {[%clk
0:02:55.1]} 8... Nd7 {[%clk 0:02:57.7]} 9. Qc2 {[%clk 0:02:52.1]} 9... Ne5
{[%clk 0:02:47.8]} 10. Be2 {[%clk 0:02:37.4]} 10... Bd7 {[%clk 0:02:40.3]} 11.
Nh3 {[%clk 0:02:26.7]} 11... O-O-O {[%clk 0:02:21.2]} 12. Nf4 {[%clk 0:02:23.4]}
12... Ng6 {[%clk 0:02:15.4]} 13. Nh5 {[%clk 0:02:20.8]} 13... Bh6 {[%clk
0:02:15.1]} 14. f4 {[%clk 0:02:08.4]} 14... Rhg8 {[%clk 0:02:06]} 15. O-O-O
{[%clk 0:02:01.6]} 15... Qa5 {[%clk 0:01:36]} 16. Kb1 {[%clk 0:01:53.1]} 16...
e5 {[%clk 0:01:31.3]} 17. g3 {[%clk 0:01:47.2]} 17... e4 {[%clk 0:01:25.7]} 18.
Nf6 {[%clk 0:01:40.7]} 18... Rh8 {[%clk 0:01:25.3]} 19. Nxd7 {[%clk 0:01:38.6]}
19... Rxd7 {[%clk 0:01:24.8]} 20. Bf1 {[%clk 0:01:35.8]} 20... Ne7 {[%clk
0:01:23.8]} 21. Bh3 {[%clk 0:01:33.8]} 21... Bg7 {[%clk 0:01:16.5]} 22. Rc1
{[%clk 0:01:31.9]} 22... h5 {[%clk 0:01:12.7]} 23. Rhg1 {[%clk 0:01:05.2]} 23...
Bf6 {[%clk 0:01:08.9]} 24. Nxe4 {[%clk 0:00:36.2]} 24... fxe4 {[%clk 0:01:08]}
25. Bxd7+ {[%clk 0:00:35.9]} 25... Kxd7 {[%clk 0:01:07.8]} 26. Qxe4 {[%clk
0:00:36.4]} 26... Re8 {[%clk 0:00:59.8]} 27. Rc2 {[%clk 0:00:33.5]} 27... b5
{[%clk 0:00:56.9]} 28. Qh7 {[%clk 0:00:26.7]} 28... bxc4 {[%clk 0:00:34.9]} 29.
Qxf7 {[%clk 0:00:22.8]} 29... Bh8 {[%clk 0:00:35.5]} 30. Qe6+ {[%clk 0:00:21.3]}
30... Kc7 {[%clk 0:00:35.7]} 31. e4 {[%clk 0:00:16.9]} 31... c3 {[%clk
0:00:35.8]} 32. b3 {[%clk 0:00:15.7]} 32... Qb5 {[%clk 0:00:29.5]} 33. e5 {[%clk
0:00:14.1]} 33... Nc8 {[%clk 0:00:23.6]} 34. exd6+ {[%clk 0:00:09.1]} 34... Nxd6
{[%clk 0:00:22.8]} 35. Qg6 {[%clk 0:00:06.7]} 35... Bd4 {[%clk 0:00:22.1]} 36.
Qh7+ {[%clk 0:00:05.9]} 36... Qd7 {[%clk 0:00:20.5]} 37. Qxh5 {[%clk 0:00:04.6]}
37... Bxg1 {[%clk 0:00:18.9]} 38. Qf3 {[%clk 0:00:02]} 38... Bd4 {[%clk
0:00:19.2]} 0-1